Workbook

Sheet FonctionsExcel
A1: CALCUL MATRICIEL AVEC EXCEL
E2: Auteur: Ph Duchemin
B4: Fonction | C4: Objet | D4: Entrée | E4: Sortie
B5: TRANSPOSE(M) | C5: Transpose un vecteur ligne | D5: Vecteur ligne n | E5: Vecteur colonne n
B6: (uk: TRANSPOSE) | C6: Transpose un vecteur colonne | D6: Vecteur colonne n | E6: Vecteur ligne n
C7: Transpose une matrice mxn | D7: Matrice nxp | E7: Matrice pxn
B9: PRODUITMAT(A,B) | C9: Retourne le produit matriciel de 2 matrices | D9: Matrice mxn et matrice nxp | E9: Matrice Carrée mxp
B10: (uk: MMLT)
B12: INVERSEMAT(M) | C12: Retourne la matrice inverse | D12: Matrice Carrée nxn | E12: Matrice Carrée nxn
B13: (uk: MATINVERSE)
B15: DETERMAT(M) | C15: Retourne le déterminant de la matrice | D15: Matrice Carrée nxn | E15: Scalaire
B16: (uk: DET)
B18: PRINCIPE DE SAISIE | C18: SI L'ARGUMENT DE SORTIE EST UNE TABLE
C19: 1 - IL FAUT SELECTIONNER LA ZONE DE SORTIE
C20: 2 - ENSUITE SAISIR LA FORMULE, PAR DEFINITION COMMENCANT PAR LE SIGNE "="
C21: 3 - PUIS SAISIR LA SEQUENCE SUIVANTE : "CTRL + MAJ" et "ENTER"

Sheet Exemples
A1: MATRICES - Exemples
B3: PRINCIPE DE SAISIE | D3: SI L'ARGUMENT DE SORTIE EST UNE TABLE | H3: SELECTIONNER LA ZONE DE SORTIE EN PREMIER
H4: SAISIR LA FORMULE
H5: PUIS SAISIR LA SEQUENCE SUIVANTE : CTRL + MAJ et ENTER
A8: ADDITION DE DEUX MATRICES | D8: Somme des cellules en référence relative | M8: Fonction
A9: FONCTION ALGEBRIQUE: PLUS (+)
C10: A | E10: + | G10: B | I10: = | K10: S
B12: 3 | C12: -2 | D12: 6 | F12: 4 | G12: 0 | H12: 4 | J12: =B12:D13+F12:H13 -> 7 | K12: -2 | L12: 10 | M12: =form(J12) -> =B12:D13+F12:H13
B13: 2 | C13: -7 | D13: -6 | F13: -6 | G13: 1 | H13: 0 | J13: -4 | K13: -6 | L13: -6
A15: MULTIPLICATION PAR UN NOMBRE | D15: Multiplication des cellules en référence absolue
A16: FONCTION ALGEBRIQUE: MULTIPLICATION (*)
D17: a | E17: x | G17: A | I17: = | K17: aA
D19: 5 | F19: 3 | G19: -2 | H19: 6 | J19: =D19*F19:H20 -> 15 | K19: -10 | L19: 30 | M19: =form(J19) -> =D19*F19:H20
F20: 2 | G20: -7 | H20: -6 | J20: 10 | K20: -35 | L20: -30
A22: DETERMINANT D'UNE MATRICE | D22: Fonction DETERMAT avec un argument table en entrée et un argument cellule en sortie
A23: FONCTION: DETERMAT
C24: A | J24: DET(A)
B26: 3 | C26: -2 | J26: =MDETERM(B26:C27) -> -17 | M26: =form(J26) -> =DETERMAT(B26:C27)
B27: 2 | C27: -7
A29: TRANSPOSEE D'UNE MATRICE | D29: Fonction TRANSPOSE avec un argument table en entrée et en sortie
A30: FONCTION MATRICIELLE: TRANSPOSE
C31: A | J31: TA
J33: =TRANSPOSE(B34:D35) -> 3 | K33: 2 | M33: =form(J33) -> =TRANSPOSE(B34:D35)
B34: 3 | C34: -2 | D34: 6 | J34: -2 | K34: -7
B35: 2 | C35: -7 | D35: -6 | J35: 6 | K35: -6
A37: PRODUIT DE DEUX MATRICES | D37: Fonction PRODUITMAT avec deux arguments Table en entrée, et un argument Table en sortie
A38: FONCTION MATRICIELLE: PRODUITMAT
C39: A | G39: B | K39: AB
F41: 1 | G41: 2 | H41: 3
B42: 1 | C42: -2 | D42: 3 | F42: -1 | G42: -2 | H42: -3 | J42: =MMULT(B42:D43,F41:H43) -> 15 | K42: 21 | L42: 21 | M42: =form(J42) -> =PRODUITMAT(B42:D43;F41:H43)
B43: 4 | C43: 5 | D43: -6 | F43: 4 | G43: 5 | H43: 4 | J43: -25 | K43: -32 | L43: -27
A46: INVERSE D'UNE MATRICE | D46: Fonction INVERSEMAT avec un argument table en entrée et en sortie
A47: FONCTION MATRICIELLE: INVERSEMAT
C48: A | J48: A-1
J50: =+MINVERSE(B51:D53) -> -0.02076124567 | K50: -0.06920415225 | L50: 0.169550173 | M50: =form(J50) -> =+INVERSEMAT(B51:D53)
B51: 3 | C51: 7 | D51: 6 | J51: 0.09688581315 | K51: -0.01038062284 | L51: -0.124567474
B52: -8 | C52: -7 | D52: 8 | J52: 0.06401384083 | K52: 0.04671280277 | L52: 0.06055363322
B53: 3 | C53: -2 | D53: 4
A55: PRODUIT SCALAIRE | D55: Fonction PRODUITMAT avec un argument table en entrée et en sortie
A56: FONCTION MATRICIELLE: PRODUITMAT
C57: A | F57: B | J57: AB
J59: =MMULT(B60:D60,F60:F62) -> -4 | M59: =form(J59) -> =PRODUITMAT(B60:D60;F60:F62)
B60: 3 | C60: 7 | D60: 6 | F60: 1
F61: -1
F62: 0
A64: PRODUIT EXTERNE | D64: Fonction PRODUITMAT avec 2 arguments Table en entrée et une Table en sortie
A65: FONCTION MATRICIELLE: PRODUITMAT
C66: B | F66: A | J66: BA
J68: =MMULT(C69:C71,E69:G69) -> 3 | K68: 7 | L68: 6 | M68: =form(J68) -> =PRODUITMAT(C69:C71;E69:G69)
C69: 1 | E69: 3 | F69: 7 | G69: 6 | J69: -3 | K69: -7 | L69: -6
C70: -1 | J70: 0 | K70: 0 | L70: 0
C71: 0
A73: PRODUIT D'UNE MATRICE | D73: Fonction PRODUITMAT avec deux arguments Table en entrée, et un argument Table en sortie
A74: ET DE SA TRANSPOSEE
A75: FONCTION MATRICIELLE: PRODUITMAT
C76: A | G76: ATA | K76: TAA
B78: 13 | C78: -8 | D78: -3 | F78: =MMULT(B78:D80,TRANSPOSE(B78:D80)) -> 242 | G78: -181 | H78: -64 | J78: =MMULT(TRANSPOSE(B78:D80),B78:D80) -> 242 | K78: -181 | L78: -64 | M78: =form(J78) -> =PRODUITMAT(TRANSPOSE(B78:D80);B78:D80)
B79: -8 | C79: 10 | D79: -1 | F79: -181 | G79: 165 | H79: 3 | J79: -181 | K79: 165 | L79: 3
B80: -3 | C80: -1 | D80: 11 | F80: -64 | G80: 3 | H80: 131 | J80: -64 | K80: 3 | L80: 131

Sheet Exercice
A1: MATRICES Exercices - Application avec Autocorrection
A4: ADDITION DE DEUX MATRICES
B5: matrice A | F5: matrice B | M5: A+B
B6: 15 | C6: -85 | D6: 0 | F6: 8 | G6: 78 | H6: 0 | I6: OK | K6: =AND(M6:O9=EXOMatCorr!J7:L10) -> FALSE | P6: =form(M6) -> 
B7: 0 | C7: 55 | D7: 6 | F7: 88 | G7: 0 | H7: 6
B8: -7 | C8: 0 | D8: -33 | F8: 4 | G8: 1 | H8: 5
B9: 2 | C9: -4 | D9: 8 | F9: -7 | G9: -22 | H9: -77
A11: MULTIPLICATION PAR UN NOMBRE
B12: matrice A | F12: scalaire b | M12: A.b
B13: 15 | C13: -85 | D13: 0 | F13: 8 | I13: OK | K13: =AND(M13:O16=EXOMatCorr!J14:L17) -> FALSE | P13: =form(M13) -> 
B14: 0 | C14: 55 | D14: 6
B15: -7 | C15: 0 | D15: -33
B16: 2 | C16: -4 | D16: 8
A18: DETERMINANT D'UNE MATRICE
B19: matrice A | M19: determinant (A)
B20: 15 | C20: -85 | D20: 0 | E20: 5 | I20: OK | K20: =(M20=EXOMatCorr!J21) -> FALSE | P20: =form(M20) -> 
B21: 0 | C21: 55 | D21: 6 | E21: 1
B22: -7 | C22: 0 | D22: -33 | E22: 8
B23: 2 | C23: -4 | D23: 8 | E23: 7
A25: TRANSPOSEE D'UNE MATRICE
B26: matrice A | M26: AT
B27: 15 | C27: -85 | D27: 0 | I27: OK | K27: =AND(M27:P29=EXOMatCorr!J28:M30) -> FALSE | R27: =form(O27) -> 
B28: 0 | C28: 55 | D28: 6
B29: -7 | C29: 0 | D29: -33
B30: 2 | C30: -4 | D30: 8
A32: PRODUIT DE DEUX MATRICES
B33: matrice A | F33: matrice B | M33: A.B
B34: 15 | C34: -85 | D34: 0 | F34: 8 | G34: 78 | H34: 0 | I34: OK | K34: =AND(M34:O37=EXOMatCorr!J35:L38) -> FALSE | P34: =form(M34) -> 
B35: 0 | C35: 55 | D35: 6 | F35: 88 | G35: 0 | H35: 6
B36: -7 | C36: 0 | D36: -33 | F36: 4 | G36: 1 | H36: 5
B37: 2 | C37: -4 | D37: 8
A39: INVERSE D'UNE MATRICE
B40: matrice A | M40: A-1
B41: 15 | C41: -85 | D41: 0 | I41: OK | K41: =AND(M41:O43=EXOMatCorr!J42:L44) -> FALSE | P41: =form(M41) -> 
B42: 5 | C42: 55 | D42: 6
B43: -7 | C43: 0 | D43: -33
A45: PRODUIT SCALAIRE
B46: vecteur A | G46: vecteur B | M46: A.B
B47: 15 | C47: 8 | D47: -7 | E47: 14 | G47: 1 | I47: OK | K47: =(M47=EXOMatCorr!J48) -> FALSE | P47: =form(M47) -> 
G48: 0
G49: 5
G50: 3
A52: PRODUIT D'UNE MATRICE ET DE SA TRANSPOSEE
B54: matrice A | M54: A.AT
B55: 15 | C55: -85 | D55: 0 | I55: OK | K55: =AND(M55:O57=EXOMatCorr!J56:L58) -> FALSE | P55: =form(M55) -> 
B56: 5 | C56: 55 | D56: 6
B57: -7 | C57: 0 | D57: -33
A60: RESOLUTION D'UN SYSTEME D'EQUATIONS
B69: 13 | C69: a + | D69: -8 | E69: b + | F69: -3 | G69: c = | H69: 20 | I69: OK | K69: =AND(N69:N71=EXOMatCorr!K62:K64) ->  | M69: a= | P69: =form(N69) -> 
B70: -8 | C70: a + | D70: 10 | E70: b + | F70: -1 | G70: c = | H70: -5 | M70: b=
B71: -3 | C71: a + | D71: -1 | E71: b + | F71: 11 | G71: c = | H71: 0 | M71: c=
B73: premier membre: A | G73: sec membre: B
A78: CALCUL DE LA TRACE DU PRODUIT DE DEUX MATRICES CARREES
B80: matrice A | F80: matrice B | M80: trace (AB) | O80: trace (BA)
B81: 15 | C81: -85 | D81: 0 | F81: 12 | G81: 2 | H81: 23 | I81: OK | K81: =AND(M81=EXOMatCorr!L69) -> FALSE | P81: =form(M81) -> 
B82: 5 | C82: 55 | D82: 6 | F82: -34 | G82: 0 | H82: 5
B83: -7 | C83: 0 | D83: -33 | F83: 38 | G83: -11 | H83: 3
A85: CALCUL DE LA TRACE D'UNE MATRICE CARREE
B87: matrice A | M87: trace (A)
B88: 15 | C88: -85 | D88: 0 | I88: OK | K88: =AND(M88=EXOMatCorr!L76) -> FALSE | P88: =form(M88) -> 
B89: 5 | C89: 55 | D89: 6
B90: -7 | C90: 0 | D90: -33

Sheet EXOMatCorr (hidden)
A1: MATRICES Exercices
A4: ADDITION DE DEUX MATRICES
B7: 15 | C7: -85 | D7: 0 | F7: 8 | G7: 78 | H7: 0 | J7: =B7:D10+F7:H10 -> 23 | K7: -7 | L7: 0
B8: 0 | C8: 55 | D8: 6 | F8: 88 | G8: 0 | H8: 6 | J8: 88 | K8: 55 | L8: 12
B9: -7 | C9: 0 | D9: -33 | F9: 4 | G9: 1 | H9: 5 | J9: -3 | K9: 1 | L9: -28
B10: 2 | C10: -4 | D10: 8 | F10: -7 | G10: -22 | H10: -77 | J10: -5 | K10: -26 | L10: -69
A12: MULTIPLICATION PAR UN NOMBRE
B14: 15 | C14: -85 | D14: 0 | F14: 8 | J14: =B14:D17*F14 -> 120 | K14: -680 | L14: 0
B15: 0 | C15: 55 | D15: 6 | J15: 0 | K15: 440 | L15: 48
B16: -7 | C16: 0 | D16: -33 | J16: -56 | K16: 0 | L16: -264
B17: 2 | C17: -4 | D17: 8 | J17: 16 | K17: -32 | L17: 64
A19: DETERMINANT D'UNE MATRICE
B21: 15 | C21: -85 | D21: 0 | E21: 5 | J21: =MDETERM(B21:E24) -> -212325
B22: 0 | C22: 55 | D22: 6 | E22: 1
B23: -7 | C23: 0 | D23: -33 | E23: 8
B24: 2 | C24: -4 | D24: 8 | E24: 7
A26: TRANSPOSEE D'UNE MATRICE
B28: 15 | C28: -85 | D28: 0 | J28: =TRANSPOSE(B28:D31) -> 15 | K28: 0 | L28: -7 | M28: 2
B29: 0 | C29: 55 | D29: 6 | J29: -85 | K29: 55 | L29: 0 | M29: -4
B30: -7 | C30: 0 | D30: -33 | J30: 0 | K30: 6 | L30: -33 | M30: 8
B31: 2 | C31: -4 | D31: 8
A33: PRODUIT DE DEUX MATRICES
B35: 15 | C35: -85 | D35: 0 | F35: 8 | G35: 78 | H35: 0 | J35: =MMULT(B35:D38,F35:H37) -> -7360 | K35: 1170 | L35: -510
B36: 0 | C36: 55 | D36: 6 | F36: 88 | G36: 0 | H36: 6 | J36: 4864 | K36: 6 | L36: 360
B37: -7 | C37: 0 | D37: -33 | F37: 4 | G37: 1 | H37: 5 | J37: -188 | K37: -579 | L37: -165
B38: 2 | C38: -4 | D38: 8 | J38: -304 | K38: 164 | L38: 16
A40: INVERSE D'UNE MATRICE
B42: 15 | C42: -85 | D42: 0 | J42: =MINVERSE(B42:D44) -> 0.04816878981 | K42: 0.07444267516 | L42: 0.01353503185
B43: 5 | C43: 55 | D43: 6 | J43: -0.00326433121 | K43: 0.01313694268 | L43: 0.002388535032
B44: -7 | C44: 0 | D44: -33 | J44: -0.01021762208 | K44: -0.01579087049 | L44: -0.03317409766
A46: PRODUIT SCALAIRE
B48: 15 | C48: 8 | D48: -7 | E48: 14 | G48: 1 | J48: =MMULT(B48:E48,G48:G51) -> 22
G49: 0
G50: 5
G51: 3
A53: PRODUIT D'UNE MATRICE
A54: ET DE SA TRANSPOSEE
B56: 15 | C56: -85 | D56: 0 | J56: =MMULT((B56:D58),TRANSPOSE(B56:D58)) -> 7450 | K56: -4600 | L56: -105
B57: 5 | C57: 55 | D57: 6 | J57: -4600 | K57: 3086 | L57: -233
B58: -7 | C58: 0 | D58: -33 | J58: -105 | K58: -233 | L58: 1138
A60: RESOLUTION DE SYSTEME
B62: =Exercice!D73 -> 0 | C62: =Exercice!E73 -> 0 | D62: =Exercice!F73 -> 0 | F62: =Exercice!H69 -> 20 | K62: =MMULT(MINVERSE(B62:D64),F62:F64) -> 
B63: =Exercice!D74 -> 0 | C63: =Exercice!E74 -> 0 | D63: =Exercice!F74 -> 0 | F63: =Exercice!H70 -> -5
B64: =Exercice!D75 -> 0 | C64: =Exercice!E75 -> 0 | D64: =Exercice!F75 -> 0 | F64: =Exercice!H71 -> 0
A66: CALCUL DE LA TRACE DU PRODUIT DE DEUX MATRICES CARREES
B68: matrice A | F68: matrice B | L68: trace (AB) | N68: trace (BA)
B69: 15 | C69: -85 | D69: 0 | F69: 12 | G69: 2 | H69: 23 | L69: =SUM(B69:D71*TRANSPOSE(F69:H71)) -> 2754 | N69: =SUM(F69:H71*TRANSPOSE(B69:D71)) -> 2754
B70: 5 | C70: 55 | D70: 6 | F70: -34 | G70: 0 | H70: 5
B71: -7 | C71: 0 | D71: -33 | F71: 38 | G71: -11 | H71: 3
A73: CALCUL DE LA TRACE D'UNE MATRICE CARREE
B75: matrice A | L75: trace (A)
B76: 15 | C76: -85 | D76: 0 | L76: =SUM(B76:D78*MMULT(B76:D78,MINVERSE(B76:D78))) -> 37
B77: 5 | C77: 55 | D77: 6
B78: -7 | C78: 0 | D78: -33
A80: CALCUL DU PRIX D'UNE OPTION
B82: Caractéristiques de l'option
B83: u | C83: 1.1
B84: d | C84: 0.95
B85: r | C85: 0.02
B86: S0 | C86: 100
B88: pay-off | L88: Prix Option
B89: V1+ | C89: 3 | E89: =1+C85 -> 1.02 | F89: =C83 -> 1.1 | H89: =C89 -> 3 | I89: OK | J89: =AND(L89=EXOMatCorr!L77) -> FALSE | L89: =SUM(MMULT(MINVERSE(E89:F90),H89:H90)) -> 1.37254902
B90: V1- | C90: 0 | E90: =E89 -> 1.02 | F90: =C84 -> 0.95 | H90: =C90 -> 0

Sheet ExArbitrage
A1: THEORIE DE L'ARBITRAGE
A3: METHODE | B3: 1 | C3: Inverser la matrice carrée de marché M, contenant en ligne i et colonne j, le prix de l'actif j dans l'état i, avec la fonction inversemat(M)
B4: 2 | C4: Multiplication matricielle, entre vecteur ligne des prix actuels et la matrice M inverse pour obtenir le vecteur ligne des prix des portefeuilles AD
B5: 3 | C5: Faire la somme S des valeurs des portefeuills AD
B6: 4 | C6: A partir de S, calculer le TSR
B7: 5 | C7: Diviser le vecteur ligne des prix des PTF AD par (1+TSF), pour obtenir les probabilités RN
A9: FINANCE A 2 ACTIFS | F9: FINANCE A 3 ACTIFS
A11: Cas 1 | C11: actif 1 | D11: actif 2 | F11: Cas 1 | H11: actif 1 | I11: actif 2 | J11: actif 3
B12: état 1 | C12: 60 | D12: 110 | G12: état 1 | H12: 60 | I12: 90 | J12: 110
B13: état 2 | C13: 50 | D13: 90 | G13: état 2 | H13: 60 | I13: 110 | J13: 110
B14: PRIX | C14: 60 | D14: 105 | G14: état 3 | H14: 80 | I14: 130 | J14: 110
G15: PRIX | H15: 60 | I15: 105 | J15: 100
C16: actif 1 | D16: actif 2
A17: Cas 2 | B17: état 1 | C17: 60 | D17: 110
B18: état 2 | C18: 50 | D18: 85
B19: PRIX | C19: 60 | D19: 105
C21: actif 1 | D21: actif 2
A22: Cas 3 | B22: état 1 | C22: 60 | D22: 110
B23: état 2 | C23: 50 | D23: 85
B24: PRIX | C24: 52.17130448 | D24: 95.6456525
C26: actif 1 | D26: actif 2
A27: Cas 4 | B27: état 1 | C27: 108 | D27: 115
B28: état 2 | C28: 115 | D28: 108
B29: PRIX | C29: 92 | D29: 113
C31: actif 1 | D31: actif 2
A32: Cas 5 | B32: état 1 | C32: 90 | D32: 150
B33: état 2 | C33: 55 | D33: 60
B34: PRIX | C34: 60 | D34: 85
C36: actif 1 | D36: actif 2
A37: Cas 6 | B37: état 1 | C37: 1.25 | D37: 8
B38: état 2 | C38: 1.25 | D38: 2
B39: PRIX | C39: 1 | D39: 4

Sheet 2actifs
A1: FINANCE A 2 ACTIFS
A3: Cas 1 | C3: actif 1 | D3: actif 2 | E3: pente | F3: CONDITION AOA
B4: état 1 | C4: 60 | D4: 110 | E4: =-D4/C4 -> -1.833333333 | F4: =MIN(E4:E5)<E6 -> TRUE
B5: état 2 | C5: 50 | D5: 90 | E5: =-D5/C5 -> -1.8 | F5: =MAX(E4:E5)>E6 -> FALSE
B6: PRIX | C6: 60 | D6: 105 | E6: =-D6/C6 -> -1.75 | F6: =IF(AND(F4,F5),"NOARB","ARB") -> ARB
B7: prix TSR | C7: =MMULT(C6:D6,MINVERSE(C4:D5)) -> -1.5 | D7: 3 | E7: =SUM(C7:D7) -> 1.5 | F7: =1/E7-1 -> -0.3333333333
B8: proba RN | C8: =C7/E7 -> -1 | D8: =D7/E7 -> 2 | E8: =SUM(C8:D8) -> 1 | F8: TSR
C10: actif 1 | D10: actif 2 | E10: pente | F10: CONDITION AOA
A11: Cas 2 | B11: état 1 | C11: 60 | D11: 110 | E11: =-D11/C11 -> -1.833333333 | F11: =MIN(E11:E12)<E13 -> TRUE
B12: état 2 | C12: 50 | D12: 85 | E12: =-D12/C12 -> -1.7 | F12: =MAX(E11:E12)>E13 -> TRUE
B13: PRIX | C13: 60 | D13: 105 | E13: =-D13/C13 -> -1.75 | F13: =IF(AND(F11,F12),"NOARB","ARB") -> NOARB
B14: prix TSR | C14: =MMULT(C13:D13,MINVERSE(C11:D12)) -> 0.375 | D14: 0.75 | E14: =SUM(C14:D14) -> 1.125 | F14: =1/E14-1 -> -0.1111111111
B15: proba RN | C15: =C14/E14 -> 0.3333333333 | D15: =D14/E14 -> 0.6666666667 | E15: =SUM(C15:D15) -> 1 | F15: TSR
C17: actif 1 | D17: actif 2 | E17: pente | F17: CONDITION AOA
A18: Cas 3 | B18: état 1 | C18: 60 | D18: 110 | E18: =-D18/C18 -> -1.833333333 | F18: =MIN(E18:E19)<E20 -> TRUE
B19: état 2 | C19: 50 | D19: 85 | E19: =-D19/C19 -> -1.7 | F19: =MAX(E18:E19)>E20 -> TRUE
B20: PRIX | C20: 52.17130448 | D20: 95.6456525 | E20: =-D20/C20 -> -1.8333 | F20: =IF(AND(F18,F19),"NOARB","ARB") -> NOARB
B21: prix TSR | C21: =MMULT(C20:D20,MINVERSE(C18:D19)) -> 0.8693043609 | D21: 0.0002608565224 | E21: =SUM(C21:D21) -> 0.8695652174 | F21: =1/E21-1 -> 0.15
B22: proba RN | C22: =C21/E21 -> 0.999700015 | D22: =D21/E21 -> 0.0002999850007 | E22: =SUM(C22:D22) -> 1 | F22: TSR
C24: actif 1 | D24: actif 2 | E24: pente | F24: CONDITION AOA
A25: Cas 4 | B25: état 1 | C25: 108 | D25: 115 | E25: =-D25/C25 -> -1.064814815 | F25: =MIN(E25:E26)<E27 -> FALSE
B26: état 2 | C26: 115 | D26: 108 | E26: =-D26/C26 -> -0.9391304348 | F26: =MAX(E25:E26)>E27 -> TRUE
B27: PRIX | C27: 92 | D27: 113 | E27: =-D27/C27 -> -1.22826087 | F27: =IF(AND(F25,F26),"NOARB","ARB") -> ARB
B28: prix TSR | C28: =MMULT(C27:D27,MINVERSE(C25:D26)) -> 1.959641256 | D28: -1.040358744 | E28: =SUM(C28:D28) -> 0.9192825112 | F28: =1/E28-1 -> 0.08780487805
B29: proba RN | C29: =C28/E28 -> 2.131707317 | D29: =D28/E28 -> -1.131707317 | E29: =SUM(C29:D29) -> 1 | F29: TSR
C31: actif 1 | D31: actif 2 | E31: pente | F31: CONDITION AOA
A32: Cas 5 | B32: état 1 | C32: 90 | D32: 150 | E32: =-D32/C32 -> -1.666666667 | F32: =MIN(E32:E33)<E34 -> TRUE
B33: état 2 | C33: 55 | D33: 60 | E33: =-D33/C33 -> -1.090909091 | F33: =MAX(E32:E33)>E34 -> TRUE
B34: PRIX | C34: 60 | D34: 85 | E34: =-D34/C34 -> -1.416666667 | F34: =IF(AND(F32,F33),"NOARB","ARB") -> NOARB
B35: prix TSR | C35: =MMULT(C34:D34,MINVERSE(C32:D33)) -> 0.3771929825 | D35: 0.4736842105 | E35: =SUM(C35:D35) -> 0.850877193 | F35: =1/E35-1 -> 0.175257732
B36: proba RN | C36: =C35/E35 -> 0.4432989691 | D36: =D35/E35 -> 0.5567010309 | E36: =SUM(C36:D36) -> 1 | F36: TSR
C38: actif 1 | D38: actif 2 | E38: pente | F38: CONDITION AOA
A39: Cas 6 | B39: état 1 | C39: 1.25 | D39: 8 | E39: =-D39/C39 -> -6.4 | F39: =MIN(E39:E40)<E41 -> TRUE
B40: état 2 | C40: 1.25 | D40: 2 | E40: =-D40/C40 -> -1.6 | F40: =MAX(E39:E40)>E41 -> TRUE
B41: PRIX | C41: 1 | D41: 4 | E41: =-D41/C41 -> -4 | F41: =IF(AND(F39,F40),"NOARB","ARB") -> NOARB
B42: prix TSR | C42: =MMULT(C41:D41,MINVERSE(C39:D40)) -> 0.4 | D42: 0.4 | E42: =SUM(C42:D42) -> 0.8 | F42: =1/E42-1 -> 0.25
B43: proba RN | C43: =C42/E42 -> 0.5 | D43: =D42/E42 -> 0.5 | E43: =SUM(C43:D43) -> 1 | F43: CONDITION AOA

Sheet 3actifs
A1: FINANCE A 3 ACTIFS
A3: Cas 1 | C3: actif 1 | D3: actif 2 | E3: actif 3 | F3: actif 1 | G3: CONDITION AOA
B4: état 1 | C4: 60 | D4: 90 | E4: 110 | F4: =+C4 -> 60 | G4: =MDETERM(D4:E5) -> -2200 | H4: 0 | I4: =MDETERM(C4:D5) -> 1200
B5: état 2 | C5: 60 | D5: 110 | E5: 110 | F5: =+C5 -> 60 | G5: -2200 | H5: 2200 | I5: =MDETERM(C5:D6) -> -1000
B6: état 3 | C6: 80 | D6: 130 | E6: 110 | F6: 80 | G6: 4400 | H6: -2200 | I6: =MDETERM(C6:D7) -> -600
B7: état 1 | C7: =C4 -> 60 | D7: =D4 -> 90 | E7: 110 | F7: 60
B8: PRIX | C8: 60 | D8: 105 | E8: 100 | G8: =IF(ABS(SIGN(I8)+SIGN(I9)+SIGN(I10))=3,"NOARB","ARB") -> NOARB | I8: =SUMPRODUCT($C$8:$E$8,G4:I4) -> -12000
B9: prix TSR | C9: =MMULT(C8:E8,MINVERSE(C4:E6)) -> 0.02272727273 | D9: 0.6136363636 | E9: 0.2727272727 | F9: =SUM(C9:E9) -> 0.9090909091 | G9: =1/F9-1 -> 0.1 | I9: =SUMPRODUCT($C$8:$E$8,G5:I5) -> -1000
B10: proba RN | C10: =C9/F9 -> 0.025 | D10: =D9/F9 -> 0.675 | E10: =E9/F9 -> 0.3 | F10: =SUM(C10:E10) -> 1 | G10: TSR | I10: =SUMPRODUCT($C$8:$E$8,G6:I6) -> -27000

Sheet Option
A1: CALCUL DU PRIX D'UNE OPTION
B3: Caractéristiques de l'option
B4: u | C4: 1.1
B5: d | C5: 0.95
B6: r | C6: 0.02
B7: S0 | C7: 100
B9: pay-off | E9: matrice (r,u,d) | H9: pay-off | M9: Prix Option
B10: V1+ | C10: 3 | I10: OK | K10: =AND(M10=EXOMatCorr!#REF!) -> 
B11: V1- | C11: 0
